Cogmind - Beta 16 @@@ ROGUE MODE // 2025.12.19 @ 15:27:32 Player: PE-P51 Result: Destroyed by Y-54 Guardian with Flak Gun Performance ------------- Evolutions (0) 0 Regions Visited (3) 600 Robots Destroyed (43) 215 Value Destroyed (1184) 1184 Prototype IDs (12) 240 Alien Tech Used (0) 0 Bonus (0) 0 TOTAL SCORE: 2239 Bonus ------- None Cogmind --------- Core Integrity 0/250 Matter 300/300 Energy 90/125 System Corruption 1% Temperature Cool (75) Movement Rolling (135) Ox3 Location -7/Recycling Parts ------- > --- POWER (1) -------- Light Ion Engine (fused) > --- PROPULSION (2) --- Improved Treads (fused) Armored Wheel > --- UTILITY (2) ------ Large Storage Unit Makeshift Light Armor Plating > --- WEAPON (2) ------- Subdweller Beam Cannon Subdweller Machine Gun > --- INVENTORY (15) --- Ion Engine Light Treads Light Treads Improved Treads Spiked Treads Armored Wheel Subdweller Monowheel Large Matter Pod (150) Sensor Array Small Laser Powered Cannon Subdweller Machine Gun Makeshift Hammer Peak State ------------ > --- POWER ------------ Light Ion Engine > --- PROPULSION ------- Improved Treads Improved Treads > --- UTILITY ---------- Large Storage Unit Makeshift Light Armor Plating > --- WEAPON ----------- Subdweller Beam Cannon Makeshift Hammer > --- INVENTORY -------- Ion Engine Light Treads Light Treads Improved Treads Improved Treads Armored Wheel Armored Wheel Large Matter Pod Sensor Array Small Laser Subdweller Beam Cannon Subdweller Beam Cannon Powered Cannon Subdweller Machine Gun [Rating: 19] Favorites ----------- Power Light Ion Engine Engine Light Ion Engine Propulsion Improved Treads Treads Improved Treads Leg Aluminum Leg Wheel Armored Wheel Utility Large Storage Unit Device Sensor Array Storage Large Storage Unit Protection Makeshift Light Armor Plating Weapon Subdweller Beam Cannon Energy Gun Medium Laser Energy Cannon Subdweller Beam Cannon Ballistic Gun Light Assault Rifle Impact Weapon Makeshift Hammer Build | -11 -10 -10 -7 ------- Run | Yrd Mat Sub Rec Slots Evolved . | . . . . Power . | . . . . Propulsion . | . . . . Utility . | . . . . Weapon . | . . . . Parts Attached 27 | . 13 14 . Power 2 | . 2 . . Engine 2 | . 2 . . Core . | . . . . Reactor . | . . . . Propulsion 10 | . 7 3 . Treads 5 | . 2 3 . Leg 3 | . 3 . . Wheel 2 | . 2 . . Hover . | . . . . Flight . | . . . . Utility 4 | . 2 2 . Device 1 | . . 1 . Storage 1 | . 1 . . Processor . | . . . . Hackware . | . . . . Protection 2 | . 1 1 . Artifact . | . . . . Weapon 11 | . 2 9 . Energy Gun 1 | . . 1 . Energy Cannon 4 | . . 4 . Ballistic Gun 5 | . 2 3 . Ballistic Cannon . | . . . . Launcher . | . . . . Special Weapon . | . . . . Impact Weapon 1 | . . 1 . Slashing Weapon . | . . . . Piercing Weapon . | . . . . Special Melee Weapon . | . . . . Unidentified Prototypes . | . . . . Parts Lost 5 | . 1 4 . Power 1 | . 1 . . Propulsion 2 | . . 2 . Utility 1 | . . 1 . Weapon 1 | . . 1 . Highest Loss Streak 2 | . 1 2 . To Critical Strikes . | . . . . Average Backups 13 | . 11 13 13 Power 1 | . 1 1 1 Propulsion 5 | . 5 5 6 Utility 2 | . 2 2 2 Weapon 4 | . 2 4 4 Tool/Special . | . . . . Unused Backups 18 | . 7 4 7 Power 1 | . . . 1 Propulsion 9 | . 4 2 3 Utility 4 | . 2 1 1 Weapon 4 | . 1 1 2 Tool/Special . | . . . . Average Slot Usage (%) 99 | . 99 99 100 Engine 13 | . 13 14 14 Treads 22 | . . 27 14 Leg 5 | . 26 . . Device 4 | . . 5 14 Storage 15 | . 22 14 14 Protection 7 | . 5 8 . Energy Gun 1 | . 7 . . Energy Cannon 17 | . . 21 14 Ballistic Gun 5 | . 20 1 . Impact Weapon 3 | . . 4 14 Peak Build Rating 19 | . 10 19 17 Average Rating 14 | . 7 16 15 On Entrance 9 | 6 6 10 16 Avg Prop Armor Cover (%) 12 | . 10 14 14 Naked Turns . | . . . . Heaviest Build 43 | 12 32 43 35 Greatest Support 46 | 20 46 46 12 Greatest Overweight (x) 2 | . 2 2 2 Average Overweight (x) . | . . . 2 Largest Inventory Capacity 15 | . 15 15 15 Average Capacity 14 | . 14 15 15 Most Carried 15 | . 15 15 14 Average Carried 13 | . 11 14 14 Final Capacity 15 | 8 15 15 15 Final Carried 15 | 6 15 14 14 Class Distribution -------------------- 84% | Mutant 8% | Scavenger-Mutant 6% | Derelict-Mutant Dominant Class ---------------- Mutant | -10/Materials Mutant | -10/Subcaves Mutant | -7/Recycling Resources | -11 -10 -10 -7 ----------- Run | Yrd Mat Sub Rec Matter Collected 1090 | 173 433 442 42 Remotely . | . . . . Salvage Created 1528 | . 836 692 . Parts 94 | . 50 44 . Haulers Intercepted 1 | . 1 . . Recyclers Shooed 1 | . 1 . . Parts Field Recycled . | . . . . Retrieved Matter . | . . . . Parts Self-Destructed 7 | . . 7 . Prevented . | . . . . Parts Restored . | . . . . Kills | -11 -10 -10 -7 ------- Run | Yrd Mat Sub Rec Combat Hostiles Destroyed 38 | . 19 19 . Guns 27 | . 19 8 . Cannons 11 | . . 11 . Classes Destroyed 7 | . 5 2 . Worker 3 | . 3 . . Hauler 1 | . 1 . . Recycler 1 | . 1 . . Swarmer 10 | . 6 4 . Grunt 13 | . 13 . . Sentry 1 | . . 1 . Subdweller 14 | . . 14 . Best Kill Streak 5 | . 5 4 . Combat Bots Only 5 | . 5 4 . Max Kills in Single Turn 2 | . 2 2 . Gunslinging 1 | . 1 1 . Exploded . | . . . . Melee . | . . . . Uniques/NPCs Destroyed . | . . . . Combat | -11 -10 -10 -7 -------- Run | Yrd Mat Sub Rec Hostile Shots Fired 198 | . 72 99 27 Missed 59 | . 18 32 9 Hits 139 | . 54 67 18 Projectile 139 | . 54 67 18 Critical Strikes 3 | . 2 1 . Damage Taken 1631 | . 596 900 135 Core 250 | . 85 111 54 Absorbed by Shields . | . . . . Core Remaining (%) 100 | 100 . . . Volleys Fired 124 | . 66 57 1 Largest 2 | . 2 2 2 Hottest 160 | . 70 160 110 Shots Fired 239 | . 131 106 2 Gun 176 | . 131 44 1 Cannon 63 | . . 62 1 Launcher . | . . . . Special . | . . . . Kinetic 141 | . 96 44 1 Thermal 98 | . 35 62 1 Explosive . | . . . . Electromagnetic . | . . . . Robot Hit Streak 12 | . 9 12 6 Robot Miss Streak 5 | . 5 3 . Penetration Max . | . . . . Secondary Targets 5 | . 1 4 . Max Gunslinging Chain 1 | . 1 1 . Shots Hit Robots 143 | . 81 60 2 Core Hits 74 | . 46 28 . Critical Kills . | . . . . Critical Parts Destroyed 1 | . 1 . . Critical Strikes 2 | . 2 . . Burn 1 | . 1 . . Destroy 1 | . 1 . . Melee Attacks 41 | . . 41 . Impact 41 | . . 41 . Slashing . | . . . . Piercing . | . . . . Sneak Attacks . | . . . . Combat Hostiles . | . . . . Follow-up Attacks . | . . . . Damage Inflicted 2046 | . 865 1137 44 Guns 1220 | . 849 354 17 Cannons 810 | . . 783 27 Explosions . | . . . . Melee . | . . . . Ramming 16 | . 16 . . Kinetic 936 | . 565 354 17 Thermal 1094 | . 284 783 27 Explosive . | . . . . Electromagnetic . | . . . . Impact . | . . . . Slashing . | . . . . Piercing . | . . . . Highest Corruption 1 | . 1 1 1 Average Corruption 1 | . 1 1 1 Corruption Purged . | . . . . Corruption Blocked . | . . . . Effects 49 | . 2 47 . Message Errors 13 | . . 13 . Matter Fused 12 | . . 12 . Heat Flow Errors 8 | . 1 7 . Energy Discharges 1 | . . 1 . Parts Fused 2 | . . 2 . Data Loss (minor) 4 | . . 4 . Data Loss (major) 2 | . . 2 . Misfires 5 | . 1 4 . Alerts 1 | . . 1 . Weapon Failures 1 | . . 1 . Overload Shots . | . . . . Overflow Damage . | . . . . Projectiles . | . . . . Explosions . | . . . . Melee . | . . . . Knockbacks . | . . . . Impact . | . . . . Kinetic . | . . . . Secondary . | . . . . Self-Inflicted Damage . | . . . . Shots . | . . . . Rammed . | . . . . Targets Rammed 4 | . 4 . . Kicked 4 | . 4 . . Crushed . | . . . . Highest Temperature 318 | . 226 318 78 Average Temperature 62 | . 35 89 50 Received Heat Transfer 510 | . 333 135 42 Siege Activations . | . . . . Martial Activations . | . . . . Shielding Activations . | . . . . Robots Disrupted . | . . . . Combat Hostiles . | . . . . Robots Corrupted . | . . . . Combat Hostiles . | . . . . Parts Fried . | . . . . Impact Corruptions . | . . . . Robots Melted . | . . . . Combat Hostiles . | . . . . Parts Melted 4 | . 1 3 . Heat Transferred 1961 | . 888 1036 37 Parts Sabotaged . | . . . . Parts Stolen . | . . . . Parts Stripped . | . . . . Power Chain Reactions . | . . . . Alert | -11 -10 -10 -7 ------- Run | Yrd Mat Sub Rec Maximum Alert Level 1 | . 1 . . Low Security (%) 55 | . 55 . 100 Level 1 44 | . 44 . . Level 2 . | . . . . Level 3 . | . . . . Level 4 . | . . . . Level 5 . | . . . . High Security . | . . . . Max Security . | . . . . Peak Influence 349 | . 349 . 21 Initial 21 | . . . 21 Average 168 | . 170 . 21 Influence Increases 790 | . 630 160 . Destroy 0b10 Robot/C 480 | . 380 100 . Destroy 0b10 Robot/NC 25 | . 25 . . Destroy Leader 92 | . 92 . . Trap Triggered on 0b10 40 | . 40 . . Successful Hack 33 | . 33 . . Select Force Hacks 30 | . 30 . . Lose Combat Pursuer 90 | . 30 60 . Influence Decreases 769 | . 353 393 23 Entered New Map 156 | . . 133 23 Time Decay 563 | . 343 220 . Lost Part 50 | . 10 40 . Squads Dispatched 5 | . 5 . . Investigation 4 | . 4 . . Extermination . | . . . . Reinforcement 1 | . 1 . . Assault . | . . . . Garrison . | . . . . Intercept . | . . . . Searches Triggered . | . . . . Construction Impeded . | . . . . Haulers Reinforced . | . . . . Active Scanning Responses . | . . . . Cargo Convoy Interrupts . | . . . . Stealth | -11 -10 -10 -7 --------- Run | Yrd Mat Sub Rec Distress Signals . | . . . . Communications Jammed . | . . . . Distress Signals . | . . . . Times Spotted 55 | . 32 21 2 Peak Tracking Total 6 | . 5 6 2 Tactical Retreats 4 | . 2 2 . Traps | -11 -10 -10 -7 ------- Run | Yrd Mat Sub Rec Traps Triggered 3 | . 2 1 . Indirectly . | . . . . Trap Hack Attempts . | . . . . Triggered . | . . . . Disarmed . | . . . . Reprogrammed 5 | . 5 . . Reused 4 | . 4 . . Traps Extracted . | . . . . Installed . | . . . . Triggered 4 | . 4 . . Machines | -11 -10 -10 -7 ---------- Run | Yrd Mat Sub Rec Machines Disabled 4 | . . 4 . Max in Single Turn 1 | . . 1 . Machines Repaired . | . . . . Machines Dismantled . | . . . . Machines Sabotaged . | . . . . Overloaded Fab Kills . | . . . . Hacking | -11 -10 -10 -7 --------- Run | Yrd Mat Sub Rec Machines Accessed 9 | . 7 2 . Terminals 6 | . 6 . . Fabricators . | . . . . Repair Stations . | . . . . Recycling Units 1 | . 1 . . Scanalyzers . | . . . . Garrison Access . | . . . . Total Hacks 25 | . 20 5 . Successful 15 | . 10 5 . Failed 10 | . 10 . . Catastrophic 3 | . 3 . . Database Lockouts . | . . . . Manual 8 | . 8 . . Terminals 18 | . 18 . . Fabricators . | . . . . Repair Stations . | . . . . Recycling Units 2 | . 2 . . Scanalyzers . | . . . . Garrison Access . | . . . . Terminal Hacks 13 | . 8 5 . Record 5 | . 1 4 . Robot Analysis 4 | . 4 . . Locate Traps 1 | . 1 . . Reprogram Traps 1 | . 1 . . Hauler Manifests 1 | . 1 . . Proto ID Catalog 1 | . . 1 . Fabricator Hacks . | . . . . Repair Station Hacks . | . . . . Recycling Unit Hacks 1 | . 1 . . Retrieve Components 1 | . 1 . . Scanalyzer . | . . . . Garrison Access Hacks . | . . . . Unauthorized Hacks 1 | . 1 . . Terminals . | . . . . Fabricators . | . . . . Repair Stations . | . . . . Recycling Units 1 | . 1 . . Tunnel 1 | . 1 . . Scanalyzers . | . . . . Garrison Access . | . . . . Data Cores Recovered . | . . . . Used . | . . . . Hacking Detections 6 | . 6 . . Full Trace Events 2 | . 2 . . Feedback Events 1 | . 1 . . Corruption 1 | . 1 . . Feedback Blocked . | . . . . Robot Schematics Acquired . | . . . . Robots Built . | . . . . Authchips . | . . . . Time . | . . . . Total Robot Build Rating . | . . . . Part Schematics Acquired . | . . . . Parts Built . | . . . . Authchips . | . . . . Time . | . . . . Total Part Build Rating . | . . . . Part Studies Acquired . | . . . . Parts Repaired . | . . . . Time . | . . . . Parts Recycled . | . . . . Recycled Matter . | . . . . Retrieved Matter . | . . . . Retrieved Components 9 | . 9 . . Parts Scanalyzed . | . . . . Part Schematics Acquired . | . . . . Parts Damaged . | . . . . Bothacking | -11 -10 -10 -7 ------------ Run | Yrd Mat Sub Rec Used RIF Installer . | . . . . Robots Hacked . | . . . . Non-combat . | . . . . Combat . | . . . . Robot Hacks Applied . | . . . . Relay Couplers Released . | . . . . Fabnet Peak Effective % . | . . . . Robots Rewired . | . . . . Allies Hacked . | . . . . Hacks Repelled . | . . . . Allies | -11 -10 -10 -7 -------- Run | Yrd Mat Sub Rec Total Allies . | . . . . Largest Group . | . . . . Highest-Rated Group . | . . . . Highest-Rated Ally . | . . . . Total Orders . | . . . . Ally Attacks . | . . . . Total Damage . | . . . . Kills . | . . . . Allies Corrupted . | . . . . Allies Melted . | . . . . Intel | -11 -10 -10 -7 ------- Run | Yrd Mat Sub Rec Active Infowar (turns) 2572 | . . 2554 18 Sensors 2572 | . . 2554 18 Robot Analysis Total 4 | . 4 . . Derelict Logs Recovered 2 | . . 2 . Drone Launches . | . . . . Drone Recoveries . | . . . . Exploration | -11 -10 -10 -7 ------------- Run | Yrd Mat Sub Rec Turns Passed 8428 | . 1677 6732 19 Spaces Moved 4227 | 1 692 3523 11 Core . | . . . . Treads 3497 | . 7 3490 . Legs 640 | 1 639 . . Wheels 90 | . 46 33 11 Hover . | . . . . Flight . | . . . . Fastest Speed 105 | 120 105 105 120 Average Speed 163 | 120 183 159 120 Slowest Speed 240 | 120 240 160 120 Overloaded Moves . | . . . . Propulsion Burnouts . | . . . . Robots Hopped . | . . . . Potential Cave-ins . | . . . . Cave-ins Triggered . | . . . . Exploration Rate (%) 48 | 1 90 99 2 Regions Visited 3 Branch Regions 2 Pre-discovered Areas 3 | . 1 2 . Known Exits Taken . | . . . . Unknown Exits Taken 3 | 1 1 1 . Scrap Searched 10 | . . 10 . Spaces Dug 9 | . . 9 . Terrain Destroyed 22 | . . 22 . Melee 5 | . . 5 . Projectile 17 | . . 17 . AOE . | . . . . Terrain Rammed . | . . . . Walls Destroyed . | . . . . Machines Disabled . | . . . . Actions | -11 -10 -10 -7 --------- Run | Yrd Mat Sub Rec Total 5477 | . 971 4492 14 Wait 1006 | . 182 824 . Move 4224 | . 691 3522 11 Hop . | . . . . Pick Up 18 | . 10 8 . Fast Attach 8 | . 5 3 . Attach 5 | . . 5 . Detach 1 | . . 1 . Swap 31 | . 9 20 2 Drop 15 | . 4 11 . Fire 124 | . 66 57 1 Melee 41 | . . 41 . Ram . | . . . . Kick 4 | . 4 . . Crush . | . . . . Escape Stasis . | . . . . Rewire . | . . . . Trap . | . . . . Miscellaneous . | . . . . Route ------- -11/Scrapyard -10/Materials (discovered 4 exits: [*Mat x2] / [*Min] / *Sub) -10/Subcaves (discovered 3 exits: [*Mat x2] / [*Rec]) -7/Recycling History --------- Turn | Location | Event 1 | -11/Scrapyard | Discovered new exit (range 0) 1 | -11/Scrapyard | Entered Materials 313 | -10/Materials | Build established: Mutant 693 | -10/Materials | Discovered new exit (range 5) 1138 | -10/Materials | Discovered new exit (range 3) 1168 | -10/Materials | Build established: Scavenger-Mutant 1592 | -10/Materials | Discovered new exit (range 12) 1671 | -10/Materials | Discovered new exit (range 7) 1678 | -10/Materials | Entered Subcaves 1679 | -10/Subcaves | Approached by a straggling Scientist 1752 | -10/Subcaves | Core integrity fell below 50% 1910 | -10/Subcaves | Build established: Mutant 1990 | -10/Subcaves | Discovered new exit (range 15) 2003 | -10/Subcaves | Visited Clippyterm 2007 | -10/Subcaves | Learned 40 Factory zone layouts 2007 | -10/Subcaves | Learned Factory garrison access intel 2041 | -10/Subcaves | Learned location of 1 exit from Materials 2388 | -10/Subcaves | Visited 4L-MR0's lab 2419 | -10/Subcaves | Found Powered Cannon 2488 | -10/Subcaves | Discovered new exit (range 14) 3060 | -10/Subcaves | Learned location of Zion (-6) 3060 | -10/Subcaves | Met a Zionite searching for "candidates" 3266 | -10/Subcaves | A swath of the cavern ceiling suddenly collapsed 4323 | -10/Subcaves | Ambushed by Subdwellers from Twisted Machinery 4623 | -10/Subcaves | Shifting Twisted Machinery released Flamer 4624 | -10/Subcaves | Shifting Twisted Machinery released Battle Rifle 4645 | -10/Subcaves | Shifting Twisted Machinery released Battle Rifle 4655 | -10/Subcaves | Shifting Twisted Machinery released Spk. Treads 4961 | -10/Subcaves | Build established: Derelict-Mutant 5491 | -10/Subcaves | Build established: Mutant 8395 | -10/Subcaves | Discovered new exit (range 2) 8410 | -10/Subcaves | Entered Recycling 8427 | -7/Recycling | Core integrity fell below 20% 8429 | -7/Recycling | Destroyed by Y-54 Guardian with Flak Gun Last Messages --------------- 07751_ Sub. Beam Cannon shoots sparks and powers down. 07753_ Dropped Broken Sub. Beam Cannon. 07783_ Acquired 10 matter. 07833_ 0G-99S(u) tweaks Twisted Machinery. 07869_ Acquired Sub. Monowheel. 07871_ 0G-99S(u) tweaks Twisted Machinery. 07892_ System corrupted: Imp. Treads fused. 08296_ System corrupted: FCS attempts to trigger Sub. Beam Cannon. 08296_ System corrupted: Sub. Beam Cannon misfires. 08312_ Clippyterm disabled. 08316_ Machine disabled. 08352_ System corrupted: Matter fused (-10). 08395_ EXIT=FOUND LOCATION=UNKNOWN GOAL=ESCAPE 08415_ Acquired 20 matter. 08425_ Acquired 10 matter. 08426_ Acquired 2 matter. 08426_ Y-54 Guardian springs to life. 08429_ Acquired 10 matter. Map ----- +----------------------------------------------------+ | ?????????????????????????? | | ?????????????????????????? | | ?????????????????????????? | | ?????????????????????????? | | ?????????????????????????? | | ?????????????????????????? | | ?????????????????????????? | | ?????????????????????????? | | ?????????????????????????? | | ?????????????????????????? | | ?????????????????????????? | | ?????????????????????????? | | ?????????????????????????? | | ?????????????????????????? | | ?????????????????????????? | | ?????????????????????????? | | ?????????????????????????? | | ?????????????????????????? | | ?????????????????????????? | | ??#####??????????????????? | | ??# #??????????????????? | | ??# #??????????????????? | | ??# #??????????????????? | | ??# #??????????????????? | | ### #??????????????????? | | #@ +??????????????????? | | #%% #??????????????????? | | #%% #??????????????????? | | ###Y #??????????????????? | | ?? Y#?????????????????? | | ??# ##?????????????????? | | ??# #??????????????????? | | ??# #??????????????????? | | ??# #??????????????????? | | ??? #??????????????????? | | ??? +??????????????????? | | ??? #??????????????????? | | ??? #??????????????????? | | ??? #??????????????????? | | ??? #??????????????????? | | ??????#??????????????????? | | ?????????????????????????? | | ?????????????????????????? | | ?????????????????????????? | | ?????????????????????????? | | ?????????????????????????? | | ?????????????????????????? | | ?????????????????????????? | | ?????????????????????????? | | ?????????????????????????? | +----------------------------------------------------+ Best States ------------- Heat Dissipation 25 Energy Generation 10 Energy Capacity 125 Matter Stores 300 Matter Capacity 300 Sight Range 16 Robot Scan Range 14 Terrain Scan Density 10 Armor Coverage 150 Evasion (%) 40 Recoil Reduction 2 Item Schematics ----------------- None Robot Schematics ------------------ None Fabricated ------------ Nothing Repaired ---------- Nothing Studied --------- None Alien Tech Used ----------------- None Achievements -------------- None Challenges ------------ None Game ------ Seed AblativeScrapMatterbank Manual? 0 Play Time 00:31:02 Cumulative 205.1 hours Start 2025.12.19 @ 14:43:19 End 2025.12.19 @ 15:27:32 Sessions 1 Manual Loads 0 Difficulty Rogue Special Mode None Game No. 283 Rogue 282 Adventurer 1 Explorer 0 Win Type - Total 2 Types 1/0/0/1/0/0/0/0/0/0 Lore% 66 Gallery% 62 Achievement% 55 Wizard Run 0 Options --------- Layout 0 ASCII 0 Keyboard 0 Movement Numpad Keybinds 0 Fullscreen 1 Font 24/Smallcaps Map View 76x50 Zoom Use 0% Tactical HUD 1 Map Filters NONE Filters NONE Steam 1 RUN: 649c85ff-4d25-42c0-ac09-39c6600b3dac